bitfinex-derivatives/quotes_BTCF0:USTF0_20241130
["timestamp","ask_amount","ask_price","bid_price","bid_amount"]
[1732935866664,0.00109599,96688.0,96687.0,0.30233943]
[1732935866865,0.00209599,96688.0,96687.0,0.30233943]
[1732935867258,0.00109599,96688.0,96687.0,0.30233943]
[1732935867460,0.00209599,96688.0,96687.0,0.30233943]
[1732935867870,0.00209599,96688.0,96687.0,0.05492864]
[1732935873574,0.00209599,96688.0,96687.0,0.06010255]
[1732935877267,0.00209599,96688.0,96687.0,0.051695]
[1732935878367,0.00209599,96688.0,96687.0,0.06656974]
[1732935879276,0.00209599,96688.0,96687.0,0.06010246]
[1732935879575,0.00209599,96688.0,96687.0,0.24587985]
[1732935880574,0.00209599,96688.0,96687.0,0.06010246]
[1732935881273,0.00209599,96688.0,96687.0,0.05492864]
[1732935881866,0.00209599,96688.0,96687.0,0.24069811]
[1732935882270,0.00109599,96688.0,96687.0,0.24169811]
[1732935883081,0.00109599,96688.0,96687.0,0.24069811]
[1732935883384,9.599e-05,96688.0,96687.0,0.24069811]
[1732935883703,9.599e-05,96688.0,96687.0,0.24069809]
[1732935885208,9.599e-05,96688.0,96687.0,0.23746447]
[1732935885801,9.9e-07,96688.0,96687.0,0.42090223]
[1732935885991,9.9e-07,96688.0,96687.0,0.89365224]
[1732935886304,0.05168,96714.0,96710.0,0.051682]
[1732935887203,0.00166039,96711.0,96710.0,0.051682]
[1732935887597,0.00466039,96711.0,96710.0,0.051682]
[1732935888303,0.00466039,96711.0,96710.0,0.05491492]
[1732935888708,0.00566039,96711.0,96710.0,0.05491492]
[1732935889404,0.00566039,96711.0,96710.0,0.051682]
[1732935889405,0.05734239,96711.0,96710.0,0.051682]
[1732935889802,0.05434239,96711.0,96710.0,0.051682]
[1732935889997,0.05734239,96711.0,96710.0,0.051682]
[1732935892823,0.05634239,96711.0,96710.0,0.051682]
[1732935893020,0.05734239,96711.0,96710.0,0.051682]
[1732935893321,0.00566039,96711.0,96710.0,0.051682]
[1732935897717,0.00266039,96711.0,96710.0,0.051682]
[1732935897921,0.00566039,96711.0,96710.0,0.051682]
[1732935900828,0.05734239,96711.0,96710.0,0.051682]
[1732935901514,0.00566039,96711.0,96710.0,0.051682]
[1732935902417,0.05734239,96711.0,96710.0,0.051682]
[1732935911105,0.05734239,96711.0,96699.0,9.151e-05]
[1732935911106,0.051686,96704.0,96699.0,9.151e-05]
[1732935911400,0.412488,96700.0,96699.0,9.151e-05]
[1732935912907,0.412488,96700.0,96699.0,0.00209151]
[1732935913209,0.412488,96700.0,96699.0,0.00309151]
[1732935913800,0.412488,96700.0,96699.0,0.00209151]
[1732935913997,0.412488,96700.0,96699.0,0.00309151]
[1732935914212,0.051688,96700.0,96699.0,0.00309151]
[1732935914405,0.412488,96700.0,96699.0,0.00309151]
[1732935914810,0.42504994,96700.0,96699.0,0.00309151]
[1732935919108,0.42504994,96700.0,96699.0,0.00209151]
[1732935919308,0.42604994,96700.0,96699.0,0.00209151]
[1732935919814,0.42904994,96700.0,96699.0,9.151e-05]
[1732935920014,0.42904994,96700.0,96699.0,5.1e-07]
[1732935920209,0.051699,96678.0,96671.0,0.0306]
[1732935920408,0.543379,96678.0,96671.0,0.0306]
[1732935922419,0.543379,96678.0,96677.0,0.009]
[1732935922820,0.543379,96678.0,96677.0,0.012]
[1732935925430,0.91655439,96678.0,96677.0,0.012]
[1732935926813,0.86485539,96678.0,96669.0,0.0321]
[1732935927119,0.412504,96670.0,96669.0,0.0321]
[1732935927314,0.543384,96670.0,96669.0,0.0321]
[1732935928608,0.543384,96670.0,96669.0,0.0391]
[1732935929213,0.543384,96670.0,96669.0,0.0351]
[1732935929517,0.544384,96670.0,96669.0,0.0421]
[1732935931724,0.544384,96670.0,96669.0,0.0391]
[1732935931919,0.543384,96670.0,96669.0,0.0351]
[1732935933424,0.05171,96658.0,96657.0,0.0333]
[1732935933621,0.54343,96658.0,96657.0,0.0333]
[1732935934711,0.54343,96658.0,96657.0,0.0652]
[1732935935121,0.54343,96658.0,96657.0,0.0722]
[1732935935311,0.54443,96658.0,96657.0,0.0802]
[1732935939519,0.55697968,96658.0,96657.0,0.0802]
[1732935940522,0.55697968,96658.0,96657.0,0.06257972]
[1732935941727,0.55697968,96658.0,96657.0,0.05857972]
[1732935942526,0.55697968,96658.0,96657.0,0.05057972]
[1732935942527,0.55597968,96658.0,96657.0,0.05057972]
[1732935942719,0.42505968,96658.0,96657.0,0.05057972]
[1732935942915,0.50426968,96658.0,96657.0,0.05057972]
[1732935943119,0.55597968,96658.0,96657.0,0.05057972]
[1732935943319,0.55597968,96658.0,96657.0,0.05381478]
[1732935943531,0.55597968,96658.0,96657.0,0.05057972]
[1732935943821,0.55597968,96658.0,96657.0,0.05381478]
[1732935948252,0.55597968,96658.0,96657.0,0.05899087]
[1732935948823,0.55597968,96658.0,96657.0,0.06546098]
[1732935950824,0.42505968,96658.0,96657.0,0.05599087]
[1732935951033,0.55593968,96658.0,96657.0,0.05699087]
[1732935951227,0.55593968,96658.0,96657.0,0.06346115]
[1732935951427,0.55893968,96658.0,96657.0,0.06346115]
[1732935953631,0.55893968,96658.0,96657.0,0.05699087]
[1732935955730,0.55893968,96658.0,96657.0,0.04857972]
[1732935959341,0.55893968,96658.0,96657.0,0.01667972]
[1732935959544,0.55893968,96658.0,96657.0,0.001]
[1732935969138,0.19813968,96658.0,96657.0,0.001]
[1732935969334,0.91973968,96658.0,96657.0,0.001]
[1732935988563,0.73714968,96658.0,96657.0,0.001]
[1732935988861,0.86798968,96658.0,96657.0,0.052711]
[1732935989160,0.86798968,96658.0,96657.0,0.05594603]
[1732935989755,0.86798968,96658.0,96657.0,0.052711]
[1732935992568,0.91969968,96658.0,96657.0,0.052711]
[1732936000467,0.19809968,96658.0,96657.0,0.052711]
[1732936003866,0.19809968,96658.0,96657.0,0.05594582]
[1732936005069,0.01554968,96658.0,96657.0,0.05594582]
[1732936005268,0.02070564,96670.0,96664.0,0.051707]
[1732936005269,0.1308,96665.0,96664.0,0.051707]
[1732936005577,0.1308,96665.0,96664.0,0.05494157]
[1732936005776,0.051704,96670.0,96669.0,0.051704]
[1732936006071,0.1308,96670.0,96669.0,0.051704]
[1732936006270,0.182504,96670.0,96669.0,0.051704]
[1732936006466,0.182504,96670.0,96669.0,0.06042084]
[1732936007672,0.182504,96670.0,96669.0,0.06142084]
[1732936007673,0.190504,96670.0,96669.0,0.06142084]
[1732936008174,0.192504,96670.0,96669.0,0.06142084]
[1732936008376,0.192504,96670.0,96669.0,0.00971684]
[1732936008676,0.192504,96670.0,96669.0,0.06142084]
[1732936009178,0.192504,96670.0,96669.0,0.00971684]
[1732936012076,0.914104,96670.0,96669.0,0.00971684]
[1732936016573,0.914104,96670.0,96669.0,1e-08]
[1732936019683,0.93480773,96670.0,96669.0,1e-08]
[1732936021576,1.36964773,96670.0,96669.0,1e-08]
[1732936021982,0.051714,96651.0,96650.0,9.223e-05]
[1732936022192,0.543274,96651.0,96650.0,9.223e-05]
[1732936023384,0.543274,96651.0,96650.0,0.00309223]
[1732936023385,0.549274,96651.0,96650.0,0.00309223]
[1732936023986,0.550274,96651.0,96650.0,9.223e-05]
[1732936029597,0.56228463,96651.0,96650.0,9.223e-05]
[1732936039504,0.58299217,96651.0,96650.0,9.223e-05]
[1732936040200,0.051718,96643.0,96642.0,0.0332]
[1732936040502,0.182478,96643.0,96642.0,0.0332]
[1732936041415,0.183478,96643.0,96642.0,0.0352]
[1732936046114,0.052718,96643.0,96642.0,0.0352]
[1732936046299,0.183398,96643.0,96642.0,0.0352]
[1732936047996,0.544198,96643.0,96642.0,0.0352]
[1732936061509,0.56490712,96643.0,96642.0,0.0352]
[1732936063918,0.20410712,96643.0,96642.0,0.0352]
[1732936064120,0.56490712,96643.0,96642.0,0.0352]
[1732936065106,0.3618,96643.0,96642.0,0.086919]
[1732936065325,0.544238,96643.0,96642.0,0.0352]
[1732936065715,0.3618,96643.0,96642.0,0.086919]
[1732936065916,0.49252,96643.0,96642.0,0.086919]
[1732936067116,0.544238,96643.0,96642.0,0.086919]
[1732936071224,0.544238,96643.0,96642.0,0.0352]
[1732936075914,0.544238,96643.0,96642.0,0.086919]
[1732936077327,0.183438,96643.0,96642.0,0.086919]
[1732936078622,0.183438,96643.0,96642.0,0.0352]
[1732936084750,0.183438,96643.0,96642.0,0.002]
[1732936090451,0.544238,96643.0,96642.0,0.002]
[1732936090643,0.56494714,96643.0,96642.0,0.002]
[1732936096250,0.20414714,96643.0,96642.0,0.002]
[1732936096455,0.56494714,96643.0,96642.0,0.002]
[1732936103555,0.413518,96643.0,96642.0,0.002]
[1732936103756,0.544038,96643.0,96642.0,0.002]
[1732936104660,0.413518,96643.0,96642.0,0.002]
[1732936104864,0.544038,96643.0,96642.0,0.002]
[1732936115264,0.413518,96643.0,96642.0,0.002]
[1732936115459,0.544038,96643.0,96642.0,0.002]
[1732936117868,0.413518,96643.0,96642.0,0.002]
[1732936118072,0.544038,96643.0,96642.0,0.002]
[1732936123176,0.052718,96643.0,96642.0,0.002]
[1732936123383,0.544038,96643.0,96642.0,0.002]
[1732936125895,0.183238,96643.0,96642.0,0.002]
[1732936126101,0.544038,96643.0,96642.0,0.002]
[1732936127309,0.413518,96643.0,96642.0,0.002]
[1732936127496,0.544038,96643.0,96642.0,0.053719]
[1732936130201,0.3618,96643.0,96642.0,0.053719]
[1732936130406,0.05171,96659.0,96658.0,0.05171]
[1732936130603,0.49132,96660.0,96644.0,0.051717]
[1732936130604,0.49132,96660.0,96650.0,0.3608]
[1732936130799,0.051709,96661.0,96660.0,0.051708]
[1732936131104,0.182229,96661.0,96660.0,0.05494272]
[1732936131306,0.13052,96666.0,96660.0,0.3640346]
[1732936131609,0.13052,96666.0,96660.0,0.3608]
[1732936132203,0.003,96661.0,96660.0,0.412509]
[1732936132809,0.13052,96666.0,96660.0,0.412509]
[1732936132810,0.00455236,96663.0,96662.0,0.051708]
[1732936134503,0.00255236,96663.0,96662.0,0.051708]
[1732936135304,0.00655236,96663.0,96662.0,0.051708]
[1732936137504,0.051709,96661.0,96660.0,0.3608]
[1732936137699,0.051709,96661.0,96660.0,0.412509]
[1732936138806,0.054709,96661.0,96660.0,0.412509]
[1732936141712,0.003,96661.0,96660.0,0.412509]
[1732936150208,0.003,96661.0,96660.0,0.051709]
[1732936151722,0.48742201,96673.0,96660.0,0.3]
[1732936151723,0.00080001,96673.0,96660.0,0.3]
[1732936152018,0.1304,96680.0,96677.0,0.0517]
[1732936152912,0.051695,96686.0,96677.0,0.0517]
[1732936153112,0.14273451,96682.0,96677.0,0.0517]
[1732936153420,0.19443251,96682.0,96677.0,0.0517]
[1732936154105,0.14273451,96682.0,96677.0,0.0517]
[1732936154312,0.3608,96689.0,96677.0,0.0517]
[1732936154507,0.00908947,96678.0,96677.0,0.0527]
[1732936154712,0.01308947,96678.0,96677.0,0.0527]
[1732936156823,0.06478847,96678.0,96677.0,0.0527]
[1732936158218,0.01308947,96678.0,96677.0,0.0527]
[1732936161228,0.00908947,96678.0,96677.0,0.0527]
[1732936161430,0.01308947,96678.0,96677.0,0.0527]
[1732936171131,0.01308947,96678.0,96677.0,0.4135]
[1732936174922,0.01308947,96678.0,96677.0,0.59893118]
[1732936175136,0.01308947,96678.0,96677.0,0.4135]
[1732936175835,0.00408947,96678.0,96677.0,0.4145]
[1732936176338,0.00408947,96678.0,96677.0,0.4155]
[1732936176637,8.947e-05,96678.0,96677.0,0.4185]
[1732936179334,8.947e-05,96678.0,96677.0,0.66574164]
[1732936179542,8.947e-05,96678.0,96677.0,0.4185]
[1732936185438,8.947e-05,96678.0,96677.0,0.42173377]
[1732936187427,8.947e-05,96678.0,96677.0,0.66873509]
[1732936187633,8.947e-05,96678.0,96677.0,0.4185]
[1732936189544,8.947e-05,96678.0,96677.0,0.4175]
[1732936192252,8.947e-05,96678.0,96677.0,0.42073374]
[1732936192844,8.947e-05,96678.0,96677.0,0.66476772]
[1732936193045,8.947e-05,96678.0,96677.0,0.66800147]
[1732936195948,8.947e-05,96678.0,96677.0,0.42073375]
[1732936196462,8.947e-05,96678.0,96677.0,0.4175]
[1732936204367,8.947e-05,96678.0,96677.0,0.42073375]
[1732936211065,8.947e-05,96678.0,96677.0,0.41873375]
[1732936211272,8.947e-05,96678.0,96677.0,0.05993375]
[1732936211467,8.947e-05,96678.0,96677.0,0.4175]
[1732936211771,8.947e-05,96678.0,96677.0,0.0567]
[1732936211963,8.947e-05,96678.0,96677.0,0.4175]
[1732936231983,0.1302,96691.0,96677.0,0.4175]
[1732936232171,0.1302,96691.0,96690.0,0.051693]
[1732936232980,0.18196957,96691.0,96690.0,0.051693]
[1732936233787,0.18196957,96691.0,96686.0,0.3608]
[1732936233788,0.13027657,96691.0,96686.0,0.3608]
[1732936233984,0.051695,96687.0,96686.0,0.3608]
[1732936234590,0.051695,96687.0,96686.0,0.412495]
[1732936235391,0.053695,96687.0,96686.0,0.412495]
[1732936235878,0.053695,96687.0,96686.0,0.413495]
[1732936236886,0.053695,96687.0,96686.0,0.052695]
[1732936237088,0.053695,96687.0,96686.0,0.413495]
[1732936238795,0.002,96687.0,96686.0,0.413495]
[1732936241395,0.002,96687.0,96686.0,0.052695]
[1732936241694,0.002,96687.0,96686.0,0.413495]
[1732936246290,0.002,96687.0,96686.0,0.59910078]
[1732936248201,0.002,96687.0,96686.0,0.23830078]
[1732936248496,0.002,96687.0,96686.0,0.59910078]
[1732936248695,0.053695,96687.0,96686.0,0.59910078]
[1732936248892,0.002,96687.0,96686.0,0.59910078]
[1732936249099,0.002,96687.0,96686.0,0.413495]
[1732936261109,0.053695,96687.0,96686.0,0.413495]
[1732936261408,0.053695,96687.0,96686.0,0.3618]
[1732936262295,0.053695,96687.0,96686.0,0.413495]
[1732936263805,0.183735,96687.0,96686.0,0.413495]
[1732936265402,0.183735,96687.0,96686.0,0.052695]
[1732936266305,0.183735,96687.0,96686.0,0.001]
[1732936266998,0.183735,96687.0,96686.0,0.052695]
[1732936270205,0.183735,96687.0,96686.0,0.001]
[1732936270507,0.183735,96687.0,96662.0,0.051708]
[1732936270508,0.05171,96663.0,96662.0,0.051708]
[1732936271306,0.0517,96678.0,96677.0,0.0517]
[1732936273409,0.0517,96678.0,96677.0,0.0547]
[1732936273605,0.0517,96678.0,96677.0,0.0567]
[1732936283702,0.3608,96684.0,96677.0,0.0567]
[1732936283912,0.181737,96683.0,96682.0,0.051697]
[1732936285306,0.3608,96684.0,96682.0,0.051697]
[1732936285508,0.14221747,96691.0,96690.0,0.051693]
[1732936286309,0.14221747,96691.0,96690.0,0.081893]
[1732936286504,0.19391047,96691.0,96690.0,0.081893]
[1732936286715,0.18172957,96691.0,96690.0,0.081893]
[1732936287114,0.05176957,96691.0,96690.0,0.081893]
[1732936287319,0.05576957,96691.0,96690.0,0.081893]
[1732936287611,0.00407657,96691.0,96690.0,0.081893]
[1732936287815,0.00407657,96691.0,96690.0,0.114493]
[1732936288218,0.00407657,96691.0,96690.0,0.30009393]
[1732936288410,0.00407657,96691.0,96690.0,0.114493]
[1732936291222,0.00155156,96712.0,96711.0,0.051682]
[1732936292215,0.00165075,96712.0,96711.0,0.084682]
[1732936292415,0.00565075,96712.0,96711.0,0.084682]
[1732936293920,0.01065075,96712.0,96711.0,0.085682]
[1732936295023,0.00565075,96712.0,96711.0,0.084682]
[1732936295224,0.00765075,96712.0,96711.0,0.116082]
[1732936296817,0.00609919,96712.0,96711.0,0.116082]
[1732936303530,0.18159,96733.0,96732.0,0.051671]
[1732936304527,0.1817219,96733.0,96732.0,0.051671]
[1732936304732,0.0518019,96733.0,96732.0,0.430471]
[1732936304934,0.1817219,96733.0,96732.0,0.430471]
[1732936306937,0.1817219,96733.0,96732.0,0.018]
[1732936307926,0.1817219,96733.0,96732.0,0.009]
[1732936308433,0.051671,96731.0,96730.0,0.051671]
[1732936309928,0.053671,96731.0,96730.0,0.052671]
[1732936312126,0.053671,96731.0,96730.0,0.001]
[1732936314432,0.183591,96731.0,96730.0,0.001]
[1732936315954,0.544391,96731.0,96730.0,0.001]
[1732936318339,0.414471,96731.0,96730.0,0.001]
[1732936318544,0.544311,96731.0,96730.0,0.001]
[1732936328340,0.414471,96731.0,96730.0,0.001]
[1732936328536,0.544311,96731.0,96730.0,0.001]
[1732936330750,0.183511,96731.0,96730.0,0.001]
[1732936331047,0.905111,96731.0,96730.0,0.001]
[1732936343855,0.544311,96731.0,96730.0,0.001]
[1732936362980,0.978871,96731.0,96730.0,0.001]
[1732936363374,0.849031,96731.0,96730.0,0.001]
[1732936363575,0.978791,96731.0,96730.0,0.001]
[1732936364179,0.92712,96731.0,96730.0,0.052672]
[1732936365271,0.49256,96731.0,96730.0,0.052672]
[1732936365472,0.12976,96731.0,96730.0,0.052672]
[1732936365882,0.0001319,96733.0,96730.0,0.001]
[1732936366080,0.0001319,96733.0,96732.0,0.051671]
[1732936366991,0.0001319,96733.0,96728.0,0.0941]
[1732936366992,0.051672,96729.0,96728.0,0.0941]
[1732936367180,0.051672,96729.0,96728.0,0.145773]
[1732936367383,0.0518019,96733.0,96730.0,0.051671]
[1732936367576,0.0518019,96733.0,96731.0,0.051671]
[1732936367885,0.0518019,96733.0,96732.0,0.001]
[1732936368889,0.0518019,96733.0,96731.0,0.051671]
[1732936369694,0.0518019,96733.0,96732.0,0.051671]
[1732936370782,0.0518019,96733.0,96732.0,0.052671]
[1732936379296,0.0518019,96733.0,96732.0,0.051671]
[1732936384098,0.0518019,96733.0,96728.0,0.0633]
[1732936384099,0.051672,96731.0,96730.0,0.051672]
[1732936384299,0.0001319,96733.0,96732.0,0.051671]
[1732936384604,0.0518019,96733.0,96732.0,0.051671]
[1732936388091,0.0001319,96733.0,96718.0,0.49048]
[1732936388403,0.051676,96723.0,96722.0,0.051676]
[1732936389413,0.05394281,96730.0,96724.0,0.051675]
[1732936389414,0.051674,96727.0,96724.0,0.051675]
[1732936389801,0.051674,96727.0,96725.0,0.051674]
[1732936391399,0.051674,96727.0,96726.0,0.051674]
[1732936391701,0.051674,96727.0,96726.0,0.05490655]
[1732936392207,0.051674,96727.0,96726.0,0.41570655]
[1732936393007,0.051674,96727.0,96726.0,0.412474]
[1732936393996,0.051674,96727.0,96726.0,0.41570645]
[1732936396600,0.051674,96727.0,96726.0,0.05490645]
[1732936397099,0.051674,96727.0,96726.0,0.05490643]
[1732936397597,0.12968,96729.0,96728.0,0.051673]
[1732936397793,0.12968,96729.0,96728.0,0.05490543]
[1732936398998,0.181352,96729.0,96728.0,0.05490543]
[1732936399404,0.051672,96729.0,96728.0,0.05490543]
[1732936401405,0.12968,96732.0,96731.0,0.051671]
[1732936402706,0.181351,96732.0,96731.0,0.051671]
[1732936402906,0.051671,96732.0,96731.0,0.051671]
[1732936408608,0.0001319,96733.0,96732.0,0.051671]
[1732936409617,0.0518019,96733.0,96732.0,0.051671]
[1732936415011,0.0518019,96733.0,96732.0,0.05490336]
[1732936416307,0.0518019,96733.0,96732.0,0.051671]
[1732936418102,0.0001319,96733.0,96732.0,0.051671]
[1732936418913,0.0001319,96733.0,96732.0,0.05490336]
[1732936421818,0.0001319,96733.0,96732.0,0.05490324]
[1732936426010,0.0001319,96733.0,96732.0,0.06007484]
[1732936427109,0.0001319,96733.0,96732.0,0.05490324]
[1732936427309,0.0001319,96733.0,96732.0,0.06007482]
[1732936428012,0.0328,96745.0,96744.0,0.051664]
[1732936428204,0.0328,96745.0,96744.0,0.412464]
[1732936428515,0.0328,96745.0,96744.0,0.42086642]
[1732936428919,0.03290149,96745.0,96744.0,0.42086642]
[1732936429911,0.03290149,96745.0,96744.0,0.412464]
[1732936433013,0.00010149,96745.0,96744.0,0.412464]
[1732936433207,0.1296,96760.0,96744.0,0.3608]
[1732936433510,0.1296,96760.0,96759.0,0.051656]
[1732936433709,0.0321,96764.0,96763.0,0.051654]
[1732936434218,0.04473508,96764.0,96763.0,0.051654]
[1732936437019,0.04473508,96764.0,96763.0,0.052654]
[1732936437221,0.03223205,96764.0,96763.0,0.052654]
[1732936437814,0.00013205,96764.0,96763.0,0.052654]
[1732936445925,0.05178605,96764.0,96763.0,0.001]
[1732936446129,0.051659,96755.0,96744.0,0.3608]
[1732936446423,0.051656,96759.0,96757.0,0.051657]
[1732936446622,0.051656,96759.0,96758.0,0.051657]
[1732936447025,0.05178605,96764.0,96763.0,0.051654]
[1732936447216,0.18130605,96764.0,96763.0,0.051654]
[1732936447827,0.18130605,96764.0,96745.0,0.051663]
[1732936447828,0.051656,96761.0,96758.0,0.051657]
[1732936448032,0.12965205,96764.0,96758.0,0.051657]
[1732936448230,0.051656,96760.0,96758.0,0.051657]
[1732936448531,0.051656,96760.0,96759.0,0.051656]
[1732936456426,0.0331,96763.0,96762.0,0.051655]
[1732936456633,0.084754,96763.0,96762.0,0.051655]
[1732936457628,0.084754,96763.0,96762.0,0.052655]
[1732936458029,0.084754,96763.0,96762.0,0.001]
[1732936472242,0.084754,96763.0,96759.0,0.051656]
[1732936472243,0.051656,96760.0,96759.0,0.051656]
[1732936473942,0.051656,96760.0,96759.0,0.05488761]
[1732936474342,0.051656,96760.0,96759.0,0.051656]
[1732936474538,0.051656,96760.0,96759.0,0.05488759]
[1732936474743,0.051656,96760.0,96759.0,0.051656]
[1732936474942,0.0331,96763.0,96762.0,0.051655]
[1732936475550,0.54290606,96764.0,96763.0,0.051654]
[1732936475551,0.41338606,96764.0,96763.0,0.051654]
[1732936475847,0.54202605,96764.0,96763.0,0.051654]
[1732936476141,0.54202605,96764.0,96763.0,0.05488557]
[1732936476942,0.54202605,96764.0,96763.0,0.00323157]
[1732936477645,0.49037205,96764.0,96758.0,0.051657]
[1732936477846,0.051656,96759.0,96758.0,0.051657]
[1732936478051,0.051656,96759.0,96758.0,0.05488861]
[1732936478747,0.49117206,96764.0,96758.0,0.05488861]
[1732936479045,0.051654,96763.0,96750.0,0.0312]
[1732936479246,0.05394281,96760.0,96759.0,0.051656]
[1732936479440,0.051654,96763.0,96759.0,0.0548876]
[1732936479639,0.12944,96762.0,96760.0,0.0032316]
[1732936479835,0.12944,96762.0,96761.0,0.0032316]
[1732936480040,0.181095,96762.0,96761.0,0.0032316]
[1732936480453,0.181095,96762.0,96760.0,0.051656]
[1732936481550,0.051655,96761.0,96760.0,0.051656]
[1732936481950,0.051655,96761.0,96760.0,0.05488761]
[1732936482254,0.051655,96761.0,96760.0,0.0548876]
[1732936482449,0.051655,96761.0,96760.0,0.051656]
[1732936483652,0.181095,96761.0,96760.0,0.051656]
[1732936484348,0.051656,96760.0,96754.0,0.051659]
[1732936484647,0.051656,96760.0,96756.0,0.051658]
[1732936484845,0.051656,96760.0,96753.0,0.18559364]
[1732936485252,0.051656,96760.0,96752.0,0.18559364]
[1732936486349,0.051656,96760.0,96757.0,0.051657]
[1732936486747,0.051657,96757.0,96754.0,0.051659]
[1732936487657,0.051657,96757.0,96750.0,0.0312]
[1732936487857,0.051657,96757.0,96755.0,0.051658]
[1732936488154,0.12944,96761.0,96756.0,0.051658]
[1732936488351,0.051655,96761.0,96750.0,0.0312]
[1732936488549,0.181095,96761.0,96757.0,0.051657]
[1732936488756,0.181095,96761.0,96758.0,0.051657]
[1732936489944,0.051655,96761.0,96758.0,0.051657]
[1732936490143,0.181095,96761.0,96758.0,0.051657]
[1732936490344,0.12944,96761.0,96750.0,0.0322]
[1732936490548,0.12944,96761.0,96760.0,0.051656]
[1732936490747,0.12944,96761.0,96760.0,0.05488737]
[1732936491349,0.00013205,96764.0,96763.0,0.051654]
[1732936495356,0.00080001,96776.0,96775.0,0.051648]
[1732936495560,0.181046,96778.0,96777.0,0.051647]
[1732936496254,0.051644,96782.0,96781.0,0.051644]
[1732936496561,0.18111774,96782.0,96781.0,0.051644]
[1732936497962,0.19320176,96782.0,96781.0,0.051644]
[1732936498857,0.14155776,96782.0,96781.0,0.051644]
[1732936500053,0.14155776,96782.0,96774.0,0.051648]
[1732936500351,0.14155776,96782.0,96760.0,0.1294]
[1732936500352,0.12932,96781.0,96753.0,0.18559364]
[1732936500547,0.051653,96765.0,96750.0,0.54639364]
[1732936500753,0.12932,96764.0,96763.0,0.051654]
[1732936502058,0.12932,96764.0,96763.0,0.052654]
[1732936502862,0.180974,96764.0,96763.0,0.052654]
[1732936503268,0.12932,96764.0,96763.0,0.054654]
[1732936504454,0.051652,96767.0,96763.0,0.003]
[1732936504657,0.06377973,96767.0,96766.0,0.051652]
[1732936504853,0.19309973,96767.0,96766.0,0.051652]
[1732936505961,0.19309973,96767.0,96763.0,0.003]
[1732936505962,0.14144773,96767.0,96763.0,0.003]
[1732936506162,0.051654,96764.0,96763.0,0.003]
[1732936507068,0.180974,96764.0,96763.0,0.003]
[1732936510868,0.541774,96764.0,96763.0,0.003]
[1732936512163,0.05166,96751.0,96750.0,0.3608]
[1732936512362,0.541774,96764.0,96747.0,0.051662]
[1732936512363,0.051662,96749.0,96747.0,0.051662]
[1732936512670,0.051662,96749.0,96748.0,0.0032318]
[1732936513470,0.3608,96754.0,96747.0,0.051662]
[1732936513769,0.3608,96754.0,96741.0,0.0321]
[1732936513770,0.05166,96751.0,96750.0,0.013]
[1732936514170,0.05166,96751.0,96750.0,0.005]
[1732936514361,0.3608,96754.0,96748.0,0.015]
[1732936514362,0.051662,96749.0,96748.0,0.015]
[1732936515269,0.051662,96749.0,96748.0,0.009]
[1732936516566,0.051662,96748.0,96747.0,0.009]
[1732936517165,0.051667,96739.0,96738.0,0.051667]
[1732936517369,0.180987,96739.0,96738.0,0.051667]
[1732936517771,0.12932,96739.0,96738.0,0.051667]
[1732936518471,0.12932,96739.0,96738.0,0.056667]
[1732936518975,0.12932,96739.0,96738.0,0.060667]
[1732936520165,0.12936,96741.0,96740.0,0.051666]
[1732936520467,0.01246747,96749.0,96740.0,0.051666]
[1732936520468,0.06412947,96749.0,96748.0,0.051662]
[1732936520673,0.19348947,96749.0,96748.0,0.051662]
[1732936520869,0.181022,96749.0,96748.0,0.051662]
[1732936521370,0.081659,96753.0,96752.0,0.05166]
[1732936521571,0.22330983,96753.0,96752.0,0.05166]
[1732936521871,0.03,96753.0,96752.0,0.05166]
[1732936522073,0.12936,96755.0,96753.0,0.051659]
[1732936522285,0.12936,96755.0,96748.0,0.001]
[1732936522286,0.051661,96751.0,96750.0,0.051661]
[1732936523176,0.12936,96753.0,96752.0,0.05166]
[1732936523780,0.12936,96753.0,96752.0,0.05266]
[1732936523971,0.3608,96754.0,96752.0,0.001]
[1732936524171,0.3608,96754.0,96753.0,0.051659]
[1732936524377,0.49016,96754.0,96753.0,0.051659]
[1732936525377,0.12936,96754.0,96753.0,0.051659]
[1732936527677,0.12936,96754.0,96753.0,0.05489073]
[1732936528576,0.12936,96754.0,96753.0,0.051659]
[1732936528780,0.12936,96754.0,96753.0,0.05489073]
[1732936529187,0.051658,96756.0,96753.0,0.00323173]
[1732936529390,0.051658,96756.0,96755.0,0.051658]
[1732936529682,0.181018,96756.0,96755.0,0.05488973]
[1732936530482,0.181018,96756.0,96725.0,0.3608]
[1732936530483,0.3608,96756.0,96725.0,0.3608]
[1732936530680,0.051669,96736.0,96728.0,0.0305]
[1732936530986,0.051669,96736.0,96732.0,0.051671]
[1732936531785,0.051669,96736.0,96733.0,0.05167]
[1732936531985,0.051669,96736.0,96728.0,0.0305]
[1732936531986,0.051669,96736.0,96729.0,0.051672]
[1732936532178,0.051669,96736.0,96734.0,0.051669]
[1732936532576,0.051669,96735.0,96728.0,0.0305]
[1732936532781,0.12928,96737.0,96728.0,0.0305]
[1732936532782,7.857e-05,96734.0,96728.0,0.009]
[1732936532983,0.051672,96729.0,96728.0,0.009]
[1732936533178,0.180952,96729.0,96728.0,0.009]
[1732936533378,0.180952,96729.0,96718.0,0.0015508]
[1732936533679,0.051678,96719.0,96718.0,0.0015508]
[1732936533880,0.180958,96719.0,96718.0,0.0015508]
[1732936536475,0.180958,96719.0,96718.0,0.0075508]
[1732936537387,0.86417601,96719.0,96701.0,0.18559364]
[1732936537590,0.051687,96702.0,96700.0,0.00013263]
[1732936537788,0.12928,96701.0,96700.0,0.00013263]
[1732936539687,0.12928,96701.0,96694.0,0.3568]
[1732936539888,0.3608,96698.0,96678.0,0.051699]
[1732936540090,0.41474281,96690.0,96676.0,0.00155149]
[1732936540283,0.051699,96680.0,96676.0,0.00155149]
[1732936540483,0.051699,96679.0,96676.0,0.00155149]
[1732936540683,0.12932,96681.0,96676.0,0.00155149]